Workbook

Sheet Salim
F2: برنامج مطابقة اشعار الحساب الجاري العام
D6: 1 | E6: 2 | F6: 3 | G6: 4 | H6: 5 | I6: 6 | J6: 7 | K6: 8 | L6: 9 | M6: 10 | N6: 11 | O6: 12 | P6: 13 | Q6: 14 | R6: 15 | S6: 16 | T6: 17 | U6: 18 | V6: 19 | W6: 20 | X6: 21 | Y6: 22 | Z6: 23 | AA6: 24 | AB6: 25 | AC6: 26 | AD6: 27 | AE6: 28 | AF6: 29 | AG6: 30 | AH6: 31 | AI6: 32 | AJ6: 61 | AK6: 62 | AL6: 63 | AM6: 33 | AN6: 34 | AO6: 35 | AP6: 36 | AQ6: 37 | AR6: 38 | AS6: 39 | AT6: 40 | AU6: 41 | AV6: 42 | AW6: 43 | AX6: 44 | AY6: 45 | AZ6: 46 | BA6: 47 | BB6: 48 | BC6: 49 | BD6: 50 | BE6: 51 | BF6: 52 | BG6: 53 | BH6: 54 | BI6: 55 | BJ6: 56 | BK6: 57 | BL6: 58 | BM6: 59 | BN6: 60 | BO6: 64 | BP6: 65 | BQ6: 66 | BR6: 67 | BS6: 68
A8: ت | C8: اسم الموظف | D8: استقطاع (4) 10 مليون العمارة 9 | E8: استقطاع (4)10 مليون بلدروز | F8: استقطاع (4) 100 راتب البحيرة 311 | G8: استقطاع (4)100 راتب مقدادية | H8: استقطاع (4)30 مليون صلاح الدين | I8: استقطاع (1) صندوق تربية | J8: استقطاع 2 5 مليون فاروق | K8: استقطاع (4) 10 مليون فاروق | L8: استقطاع (4) 5 مليون بلدروز | M8: استقطاع (4) الرشيد اشنونا سيارات | N8: استقطاع (4) سيارات بعقوبة | O8: استقطاع (4) لصناعة المواد الانشائية | P8: استقطاع (4) نقابة المعلمين | Q8: استقطاع (4)5 مليون 14 بعقوبة | R8: استقطاع 5 رعاية | S8: استقطاع 6 رسم طابع | T8: استقطاع (4) 100 راتب 14 بعقوبة | U8: استقطاع (4) اربعة مصرف الثقة | V8: استقطاع(3) مئة راتب فاروق | W8: التامين مصرف 14 بعقوبة | X8: التامين مصرف الفاروق | Y8: استقطاع (4)الرافدين المحيط بغداد | Z8: المصرف الزراعي الخالص | AA8: المصرف الزراعي المقدادية | AB8: المصرف الزراعي بعقوبة | AC8: المصرف الزراعي هبهب | AD8: امانات متنوعة صندوق اسكان | AE8: ايراد نهائي | AF8: بدل ايجار | AG8: تامين البحيرة | AH8: تامين المقدادية | AI8: تامين صلاح الدين | AJ8: تنفيذ كاظمية | AK8: تنفيذ الرصافة | AL8: تنفيذ الحلة | AM8: تنفيذ ابي صيدا | AN8: تنفيذ البياع | AO8: تنفيذ الخالص | AP8: تنفيذ الزهور | AQ8: تنفيذ العزيزية | AR8: تنفيذ بعقوبة | AS8: تنفيذ بلدروز | AT8: تنفيذ خان بني سعد | AU8: توقيفات تقاعدية | AV8: استقطاع (4) رافدين 311 سيارات | AW8: استقطاع (4)سلفة زواج فاروق | AX8: سلفة متنوعة | AY8: استقطاع (4)شركة ديالى | AZ8: ضريبة دخل | BA8: عقاري | BB8: استقطاع (4) قرض اسكان بلدروز | BC8: استقطاع (4)مصرف الرافدين العلوية | BD8: استقطاع 5 فرع الهندية | BE8: تنفيذ الدورة | BF8: تنفيذ كربلاء | BG8: استقطاع (4) 30 مليون فاروق | BH8: استقطاع (4) 5 مليون مصرف رافدين | BI8: استقطاع (4) مديرية زراعة ديالى | BJ8: استقطاع (4) 10 مليون مقدادية | BK8: استقطاع (4) رشيد شنونا 10 مليون | BL8: استقطاع (4)جامعة ديالى قسم الشؤون المالية | BM8: استقطاع (4) فرع الاعظمية 10 مليون | BN8: استقطاع (4) 30 مليون المقدادية | BO8: استقطاع (4)المصرف العراقي للتجارة/ النجف الاشرف | BP8: استقطاع(4) سلفة زواج صندوق التربية | BQ8: تنفيذ جلولاء | BR8: استقطاع(4) 5مليون حذيفة بن اليمان | BS8: استقطاع(4)10 مليون رافدين 14
A9: 10 | C9: احمد حميد | I9: 611000 | J9: 102395 | Q9: 409580 | R9: 782685 | T9: 445371 | W9: 20833 | AB9: 620400 | AC9: 640400 | AD9: 130860 | AE9: 123000 | AR9: 1477890 | AT9: 176250 | AU9: 31736220 | AX9: 219731 | AZ9: 11638116 | BA9: 1221750 | CB9: =SUMif -> 
A10: 14 | C10: اسيل خليل | I10: 592000 | J10: 307185 | K10: 1228752 | O10: 73250 | R10: 790459 | AB10: 1176750 | AD10: 305052 | AR10: 489450 | AU10: 31958400 | AZ10: 13371973 | BA10: 1335250
A11: 23 | C11: اشواق رزوقي | I11: 518000 | J11: 204790 | K11: 409584 | Q11: 102395 | R11: 585623 | Z11: 620000 | AB11: 234822 | AD11: 384420 | AE11: 250000 | AO11: 924483 | AR11: 553631 | AS11: 233000 | AU11: 23477500 | AZ11: 5901735 | BA11: 1105500 | BK11: 192084
A12: 9 | C12: امجد حميد | H12: 131329 | I12: 634000 | K12: 614376 | R12: 798545 | U12: 650000 | V12: 721500 | X12: 33750 | AB12: 1338100 | AD12: 127150 | AE12: 476041 | AI12: 6200 | AQ12: 129060 | AR12: 1545570 | AU12: 32105200 | AX12: 231570 | AZ12: 11510388 | BA12: 372000 | BP12: 104167
A13: 20 | C13: بيداء فارس | I13: 599000 | K13: 614376 | R13: 849509 | V13: 846204 | W13: 39583 | AE13: 414004 | AR13: 103000 | AU13: 34874300 | AZ13: 16344874 | BA13: 1724000 | BL13: 248800
A14: 7 | C14: حسام الدين طه محسن | I14: 347000 | R14: 411253 | T14: 374111 | X14: 17500 | AE14: 273468 | AR14: 206000 | AU14: 16612300 | AX14: 677100 | AZ14: 4684272
A15: 19 | C15: حسام رشيد | I15: 682000 | J15: 102395 | K15: 819168 | Q15: 204790 | R15: 853214 | V15: 329575 | X15: 15417 | AC15: 877900 | AE15: 304253 | AM15: 309000 | AR15: 1970210 | AT15: 80200 | AU15: 34968300 | AW15: 104000 | AX15: 338000 | AZ15: 12140261 | BA15: 713750 | BI15: 100000 | BM15: 204792 | BN15: 269166
A16: 15 | C16: حسين صكبان | D16: 204792 | F16: 331000 | I16: 668000 | K16: 819168 | R16: 857465 | V16: 890742 | X16: 41666 | AA16: 109225 | AB16: 1312600 | AD16: 327150 | AE16: 150002 | AF16: 81400 | AR16: 1833110 | AU16: 34618226 | AZ16: 12537141 | BA16: 1291250 | BC16: 420000
A17: 25 | C17: سلام إبراهيم | G17: 322448 | I17: 633000 | M17: 409639 | R17: 812592 | S17: 1000 | AC17: 1031325 | AE17: 100002 | AH17: 15000 | AU17: 32874173 | AX17: 100000 | AZ17: 11090080 | BA17: 53000
A18: 12 | C18: سهاد نبهان جلوب | I18: 504000 | J18: 307185 | K18: 819168 | R18: 648871 | AE18: 1 | AR18: 757778 | AU18: 26562750 | AX18: 80725 | AZ18: 9944918 | BA18: 744500 | BJ18: 192084 | BR18: 308945
A19: 3 | C19: شاكر علي | I19: 546000 | K19: 614376 | Q19: 102395 | R19: 678024 | AE19: 225002 | AU19: 27539800 | AX19: 48000 | AZ19: 10172728 | BA19: 301750
A20: 2 | C20: طلبة عبد جسام | I20: 485000 | J20: 204790 | K20: 409584 | N20: 654000 | Q20: 192166 | R20: 549493 | T20: 267223 | W20: 12500 | AE20: 311000 | AN20: 90000 | AO20: 226600 | AR20: 674140 | AU20: 22426000 | AV20: 520000 | AZ20: 6351202 | BA20: 560000 | BQ20: 110000
A21: 6 | C21: عذراء علي عبد | F21: 407069 | I21: 593000 | R21: 737937 | T21: 391926 | V21: 419688 | W21: 18333 | X21: 18750 | AB21: 388400 | AD21: 145400 | AE21: 609450 | AG21: 19042 | AM21: 268697 | AO21: 67000 | AR21: 149170 | AT21: 157824 | AU21: 30283300 | AZ21: 10330535 | BA21: 587000 | BB21: 133611 | BC21: 420000
A22: 1 | C22: فاتن عبد العزيز | G22: 445371 | I22: 489000 | M22: 409639 | R22: 643393 | V22: 400833 | X22: 18750 | AD22: 127150 | AE22: 150011 | AH22: 2085 | AU22: 26130500 | AZ22: 9983794 | BA22: 1334750
A23: 21 | C23: قسمه حميد | I23: 577000 | J23: 102395 | K23: 204792 | Q23: 102395 | R23: 694222 | V23: 445371 | X23: 20833 | AD23: 408750 | AE23: 154600 | AF23: 19000 | AO23: 20600 | AR23: 273620 | AU23: 28115550 | AV23: 1007000 | AZ23: 9372202 | BA23: 1092500 | BG23: 410258
A24: 24 | C24: ليلى علي حميد | I24: 567000 | K24: 204792 | M24: 436655 | P24: 127580 | R24: 747844 | V24: 445371 | X24: 20833 | AC24: 119320 | AD24: 326056 | AE24: 458104 | AJ24: 288780 | AK24: 407610 | AR24: 1255595 | AU24: 30194800 | AZ24: 12269591 | BA24: 880000 | BS24: 204792
A25: 26 | C25: محمد تعبان محمد | I25: 610000 | J25: 102395 | K25: 409584 | Q25: 204790 | R25: 764651 | T25: 445371 | W25: 20833 | AD25: 145400 | AE25: 932127 | AL25: 195700 | AO25: 123600 | AP25: 362450 | AR25: 1744530 | AU25: 31689250 | AV25: 340000 | AZ25: 10439010 | BA25: 963000 | BC25: 519000 | BO25: 322675
A26: 17 | C26: محمد خالد | E26: 204792 | I26: 655000 | K26: 614376 | M26: 568958 | Q26: 102395 | R26: 764507 | T26: 445371 | V26: 445371 | W26: 20833 | X26: 20833 | Y26: 204792 | AA26: 252227 | AB26: 520000 | AE26: 196001 | AO26: 128750 | AR26: 1097250 | AU26: 31289589 | AX26: 534701 | AZ26: 9186999 | BA26: 983000 | BJ26: 269166
A27: 22 | C27: محمد عبد فليح | I27: =337000+83333 -> 420333 | K27: 614376 | Q27: 102395 | R27: 374759 | AC27: 469075 | AE27: 189791 | AU27: 15118600 | AZ27: 3233540 | BA27: 527500
A28: 16 | C28: مصطفى كريم | I28: 650000 | J28: 409580 | K28: 819168 | M28: 409639 | N28: 351012 | R28: 787431 | U28: 365000 | V28: 400833 | X28: 18750 | AB28: 890000 | AE28: 483596 | AF28: 49500 | AR28: 1618890 | AS28: 154500 | AT28: 623440 | AU28: 32151423 | AX28: 340000 | AY28: 100000 | AZ28: 9224458 | BA28: 1065500 | BC28: 519000
A29: 11 | C29: نضال إبراهيم | I29: 506000 | K29: 614376 | M29: 409639 | R29: 612374 | V29: 445371 | X29: 20833 | AE29: 1107667 | AR29: 725670 | AU29: 24923600 | AX29: 60000 | AZ29: 8319417 | BA29: 368000
A30: 5 | C30: نورة علاء حسين | I30: 567000 | K30: 819168 | Q30: 294561 | R30: 721552 | T30: 641344 | U30: 510000 | X30: 17500 | AD30: 145400 | AE30: 599002 | AR30: 179630 | AU30: 29553633 | AW30: 104000 | AX30: 103620 | AZ30: 11201373 | BA30: 745500
A31: 18 | C31: نوفل محمد إسماعيل | I31: 660000 | K31: 409584 | R31: 905600 | V31: 1576613 | X31: 73749 | AD31: 145400 | AE31: 314463 | AR31: 1870981 | AU31: 36831100 | AZ31: 15421396 | BA31: 776500
A32: 8 | C32: هشام محي رشيد | I32: 375000 | J32: 204790 | K32: 1023960 | R32: 489274 | AD32: 97480 | AR32: 197300 | AU32: 19729800 | AX32: 232910 | AZ32: 7850757 | BA32: 186000
A33: 4 | C33: وسام فاضل | I33: 586000 | J33: 409580 | K33: 2252712 | L33: 102396 | N33: 180960 | R33: 691029 | U33: 225000 | V33: 890742 | X33: 41666 | Z33: 450175 | AB33: 1051650 | AD33: 127150 | AE33: 1164401 | AO33: 177910 | AP33: 100000 | AR33: 359660 | AU33: 27911116 | AV33: 192420 | AX33: 110593 | AZ33: 9504096 | BA33: 1422500
A34: 13 | C34: وسام احمد جواد | I34: 461000 | N34: 376000 | R34: 616817 | T34: 1104517 | U34: 510000 | W34: 52499 | AE34: 281000 | AR34: 1337130 | AU34: 24672850 | AZ34: 10308330 | BA34: 1065000
A35: 27
A36: 28
A37: 29
A38: 30
A39: 31
A40: 32
A41: 33
A42: 34
A43: 35
A44: 36
A45: 37
A46: 38
A47: 39
A48: 40
D65: =SUM(D9:D64) -> 204792 | E65: =SUM(E9:E64) -> 204792 | F65: 738069 | G65: 767819 | H65: =SUM(H9:H64) -> 131329 | I65: 14535333 | J65: 2457480 | K65: =SUM(K9:K64) -> 14335440 | L65: =SUM(L9:L64) -> 102396 | M65: =SUM(M9:M64) -> 2644169 | N65: =SUM(N9:N64) -> 1561972 | O65: =SUM(O9:O64) -> 73250 | P65: =SUM(P9:P64) -> 127580 | Q65: =SUM(Q9:Q64) -> 1817862 | R65: 18169123 | S65: 1000 | T65: 4115234 | U65: 2260000 | V65: 8258214 | W65: 185414 | X65: =SUM(X9:X64) -> 380830 | Y65: 204792 | Z65: 1070175 | AA65: 361452 | AB65: 7532722 | AC65: 3138020 | AD65: 2942818 | AE65: 9266986 | AF65: 149900 | AG65: 19042 | AH65: 17085 | AI65: 6200 | AJ65: =SUM(AJ9:AJ64) -> 288780 | AK65: =SUM(AK9:AK64) -> 407610 | AL65: =SUM(AL9:AL64) -> 195700 | AM65: 577697 | AN65: 90000 | AO65: 1668943 | AP65: 462450 | AQ65: 129060 | AR65: 20420205 | AS65: 387500 | AT65: 1037714 | AU65: 738348280 | AV65: 2059420 | AW65: 208000 | AX65: 3076950 | AY65: 100000 | AZ65: 262333186 | BA65: 21419500 | BB65: 133611 | BC65: 1878000 | BD65: 0 | BE65: 0 | BF65: 0 | BG65: 410258 | BH65: 0 | BI65: 100000 | BJ65: 461250 | BK65: 192084 | BL65: 248800 | BM65: =SUM(BM9:BM64) -> 204792 | BN65: 269166 | BO65: 322675 | BP65: 104167 | BQ65: =SUM(BQ9:BQ64) -> 110000 | BR65: =SUM(BR9:BR64) -> 308945 | BS65: 204792 | BT65: 0
J74: 2457480

Sheet ورقة264
B1: 1 | C1: 1
B2: =TRANSPOSE(J2:DF2) -> استقطاع (4) 10 مليون العمارة 9 | C2: =TRANSPOSE(J3:DF3) -> 204792 | J2: =Salim!D8 -> استقطاع (4) 10 مليون العمارة 9 | K2: =Salim!E8 -> استقطاع (4)10 مليون بلدروز | L2: =Salim!F8 -> استقطاع (4) 100 راتب البحيرة 311 | M2: =Salim!G8 -> استقطاع (4)100 راتب مقدادية | N2: =Salim!H8 -> استقطاع (4)30 مليون صلاح الدين | O2: =Salim!I8 -> استقطاع (1) صندوق تربية | P2: =Salim!J8 -> استقطاع 2 5 مليون فاروق | Q2: =Salim!K8 -> استقطاع (4) 10 مليون فاروق | R2: =Salim!L8 -> استقطاع (4) 5 مليون بلدروز | S2: =Salim!M8 -> استقطاع (4) الرشيد اشنونا سيارات | T2: =Salim!N8 -> استقطاع (4) سيارات بعقوبة | U2: =Salim!O8 -> استقطاع (4) لصناعة المواد الانشائية | V2: =Salim!P8 -> استقطاع (4) نقابة المعلمين | W2: =Salim!Q8 -> استقطاع (4)5 مليون 14 بعقوبة | X2: =Salim!R8 -> استقطاع 5 رعاية | Y2: =Salim!S8 -> استقطاع 6 رسم طابع | Z2: =Salim!T8 -> استقطاع (4) 100 راتب 14 بعقوبة | AA2: =Salim!U8 -> استقطاع (4) اربعة مصرف الثقة | AB2: =Salim!V8 -> استقطاع(3) مئة راتب فاروق | AC2: =Salim!W8 -> التامين مصرف 14 بعقوبة | AD2: =Salim!X8 -> التامين مصرف الفاروق | AE2: =Salim!Y8 -> استقطاع (4)الرافدين المحيط بغداد | AF2: =Salim!Z8 -> المصرف الزراعي الخالص | AG2: =Salim!AA8 -> المصرف الزراعي المقدادية | AH2: =Salim!AB8 -> المصرف الزراعي بعقوبة | AI2: =Salim!AC8 -> المصرف الزراعي هبهب | AJ2: =Salim!AD8 -> امانات متنوعة صندوق اسكان | AK2: =Salim!AE8 -> ايراد نهائي | AL2: =Salim!AF8 -> بدل ايجار | AM2: =Salim!AG8 -> تامين البحيرة | AN2: =Salim!AH8 -> تامين المقدادية | AO2: =Salim!AI8 -> تامين صلاح الدين | AP2: =Salim!AJ8 -> تنفيذ كاظمية | AQ2: =Salim!AK8 -> تنفيذ الرصافة | AR2: =Salim!AL8 -> تنفيذ الحلة | AS2: =Salim!AM8 -> تنفيذ ابي صيدا | AT2: =Salim!AN8 -> تنفيذ البياع | AU2: =Salim!AO8 -> تنفيذ الخالص | AV2: =Salim!AP8 -> تنفيذ الزهور | AW2: =Salim!AQ8 -> تنفيذ العزيزية | AX2: =Salim!AR8 -> تنفيذ بعقوبة | AY2: =Salim!AS8 -> تنفيذ بلدروز | AZ2: =Salim!AT8 -> تنفيذ خان بني سعد | BA2: =Salim!AU8 -> توقيفات تقاعدية | BB2: =Salim!AV8 -> استقطاع (4) رافدين 311 سيارات | BC2: =Salim!AW8 -> استقطاع (4)سلفة زواج فاروق | BD2: =Salim!AX8 -> سلفة متنوعة | BE2: =Salim!AY8 -> استقطاع (4)شركة ديالى | BF2: =Salim!AZ8 -> ضريبة دخل | BG2: =Salim!BA8 -> عقاري | BH2: =Salim!BB8 -> استقطاع (4) قرض اسكان بلدروز | BI2: =Salim!BC8 -> استقطاع (4)مصرف الرافدين العلوية | BJ2: =Salim!BD8 -> استقطاع 5 فرع الهندية | BK2: =Salim!BE8 -> تنفيذ الدورة | BL2: =Salim!BF8 -> تنفيذ كربلاء | BM2: =Salim!BG8 -> استقطاع (4) 30 مليون فاروق | BN2: =Salim!BH8 -> استقطاع (4) 5 مليون مصرف رافدين | BO2: =Salim!BI8 -> استقطاع (4) مديرية زراعة ديالى | BP2: =Salim!BJ8 -> استقطاع (4) 10 مليون مقدادية | BQ2: =Salim!BK8 -> استقطاع (4) رشيد شنونا 10 مليون | BR2: =Salim!BL8 -> استقطاع (4)جامعة ديالى قسم الشؤون المالية | BS2: =Salim!BM8 -> استقطاع (4) فرع الاعظمية 10 مليون | BT2: =Salim!BN8 -> استقطاع (4) 30 مليون المقدادية | BU2: =Salim!BO8 -> استقطاع (4)المصرف العراقي للتجارة/ النجف الاشرف | BV2: =Salim!BP8 -> استقطاع(4) سلفة زواج صندوق التربية | BW2: =Salim!BQ8 -> تنفيذ جلولاء | BX2: =Salim!BR8 -> استقطاع(4) 5مليون حذيفة بن اليمان | BY2: =Salim!BS8 -> استقطاع(4)10 مليون رافدين 14 | BZ2: =Salim!BT8 -> 0 | CA2: =Salim!BU8 -> 0 | CB2: =Salim!BV8 -> 0 | CC2: =Salim!BW8 -> 0 | CD2: =Salim!BX8 -> 0 | CE2: =Salim!BY8 -> 0 | CF2: =Salim!BZ8 -> 0 | CG2: =Salim!CA8 -> 0 | CH2: =Salim!CB8 -> 0 | CI2: =Salim!CC8 -> 0 | CJ2: =Salim!CD8 -> 0 | CK2: =Salim!CE8 -> 0 | CL2: =Salim!CF8 -> 0 | CM2: =Salim!CG8 -> 0 | CN2: =Salim!CH8 -> 0 | CO2: =Salim!CI8 -> 0 | CP2: =Salim!CJ8 -> 0 | CQ2: =Salim!CK8 -> 0 | CR2: =Salim!CL8 -> 0 | CS2: =Salim!CM8 -> 0 | CT2: =Salim!CN8 -> 0 | CU2: =Salim!CO8 -> 0 | CV2: =Salim!CP8 -> 0 | CW2: =Salim!CQ8 -> 0 | CX2: =Salim!CR8 -> 0 | CY2: =Salim!CS8 -> 0 | CZ2: =Salim!CT8 -> 0 | DA2: =Salim!CU8 -> 0 | DB2: =Salim!CV8 -> 0 | DC2: =Salim!CW8 -> 0 | DD2: =Salim!CX8 -> 0 | DE2: =Salim!CY8 -> 0 | DF2: =Salim!CZ8 -> 0
B3: استقطاع (4)10 مليون بلدروز | C3: 204792 | J3: =Salim!D65 -> 204792 | K3: =Salim!E65 -> 204792 | L3: =Salim!F65 -> 738069 | M3: =Salim!G65 -> 767819 | N3: =Salim!H65 -> 131329 | O3: =Salim!I65 -> 14535333 | P3: =Salim!J65 -> 2457480 | Q3: =Salim!K65 -> 14335440 | R3: =Salim!L65 -> 102396 | S3: =Salim!M65 -> 2644169 | T3: =Salim!N65 -> 1561972 | U3: =Salim!O65 -> 73250 | V3: =Salim!P65 -> 127580 | W3: =Salim!Q65 -> 1817862 | X3: =Salim!R65 -> 18169123 | Y3: =Salim!S65 -> 1000 | Z3: =Salim!T65 -> 4115234 | AA3: =Salim!U65 -> 2260000 | AB3: =Salim!V65 -> 8258214 | AC3: =Salim!W65 -> 185414 | AD3: =Salim!X65 -> 380830 | AE3: =Salim!Y65 -> 204792 | AF3: =Salim!Z65 -> 1070175 | AG3: =Salim!AA65 -> 361452 | AH3: =Salim!AB65 -> 7532722 | AI3: =Salim!AC65 -> 3138020 | AJ3: =Salim!AD65 -> 2942818 | AK3: =Salim!AE65 -> 9266986 | AL3: =Salim!AF65 -> 149900 | AM3: =Salim!AG65 -> 19042 | AN3: =Salim!AH65 -> 17085 | AO3: =Salim!AI65 -> 6200 | AP3: =Salim!AJ65 -> 288780 | AQ3: =Salim!AK65 -> 407610 | AR3: =Salim!AL65 -> 195700 | AS3: =Salim!AM65 -> 577697 | AT3: =Salim!AN65 -> 90000 | AU3: =Salim!AO65 -> 1668943 | AV3: =Salim!AP65 -> 462450 | AW3: =Salim!AQ65 -> 129060 | AX3: =Salim!AR65 -> 20420205 | AY3: =Salim!AS65 -> 387500 | AZ3: =Salim!AT65 -> 1037714 | BA3: =Salim!AU65 -> 738348280 | BB3: =Salim!AV65 -> 2059420 | BC3: =Salim!AW65 -> 208000 | BD3: =Salim!AX65 -> 3076950 | BE3: =Salim!AY65 -> 100000 | BF3: =Salim!AZ65 -> 262333186 | BG3: =Salim!BA65 -> 21419500 | BH3: =Salim!BB65 -> 133611 | BI3: =Salim!BC65 -> 1878000 | BJ3: =Salim!BD65 -> 0 | BK3: =Salim!BE65 -> 0 | BL3: =Salim!BF65 -> 0 | BM3: =Salim!BG65 -> 410258 | BN3: =Salim!BH65 -> 0 | BO3: =Salim!BI65 -> 100000 | BP3: =Salim!BJ65 -> 461250 | BQ3: =Salim!BK65 -> 192084 | BR3: =Salim!BL65 -> 248800 | BS3: =Salim!BM65 -> 204792 | BT3: =Salim!BN65 -> 269166 | BU3: =Salim!BO65 -> 322675 | BV3: =Salim!BP65 -> 104167 | BW3: =Salim!BQ65 -> 110000 | BX3: =Salim!BR65 -> 308945 | BY3: =Salim!BS65 -> 204792 | BZ3: =Salim!BT65 -> 0 | CA3: =Salim!BU65 -> 0 | CB3: =Salim!BV65 -> 0 | CC3: =Salim!BW65 -> 0 | CD3: =Salim!BX65 -> 0 | CE3: =Salim!BY65 -> 0 | CF3: =Salim!BZ65 -> 0 | CG3: =Salim!CA65 -> 0 | CH3: =Salim!CB65 -> 0 | CI3: =Salim!CC65 -> 0 | CJ3: =Salim!CD65 -> 0 | CK3: =Salim!CE65 -> 0 | CL3: =Salim!CF65 -> 0 | CM3: =Salim!CG65 -> 0 | CN3: =Salim!CH65 -> 0 | CO3: =Salim!CI65 -> 0 | CP3: =Salim!CJ65 -> 0 | CQ3: =Salim!CK65 -> 0 | CR3: =Salim!CL65 -> 0 | CS3: =Salim!CM65 -> 0 | CT3: =Salim!CN65 -> 0 | CU3: =Salim!CO65 -> 0 | CV3: =Salim!CP65 -> 0 | CW3: =Salim!CQ65 -> 0 | CX3: =Salim!CR65 -> 0 | CY3: =Salim!CS65 -> 0 | CZ3: =Salim!CT65 -> 0 | DA3: =Salim!CU65 -> 0 | DB3: =Salim!CV65 -> 0 | DC3: =Salim!CW65 -> 0 | DD3: =Salim!CX65 -> 0 | DE3: =Salim!CY65 -> 0 | DF3: =Salim!CZ65 -> 0
B4: استقطاع (4) 100 راتب البحيرة 311 | C4: 738069
B5: استقطاع (4)100 راتب مقدادية | C5: 767819
B6: استقطاع (4)30 مليون صلاح الدين | C6: 131329
B7: استقطاع (1) صندوق تربية | C7: 14535333
B8: استقطاع 2 5 مليون فاروق | C8: 2457480
B9: استقطاع (4) 10 مليون فاروق | C9: 14335440
B10: استقطاع (4) 5 مليون بلدروز | C10: 102396
B11: استقطاع (4) الرشيد اشنونا سيارات | C11: 2644169
B12: استقطاع (4) سيارات بعقوبة | C12: 1561972
B13: استقطاع (4) لصناعة المواد الانشائية | C13: 73250
B14: استقطاع (4) نقابة المعلمين | C14: 127580
B15: استقطاع (4)5 مليون 14 بعقوبة | C15: 1817862
B16: استقطاع 5 رعاية | C16: 18169123
B17: استقطاع 6 رسم طابع | C17: 1000
B18: استقطاع (4) 100 راتب 14 بعقوبة | C18: 4115234
B19: استقطاع (4) اربعة مصرف الثقة | C19: 2260000
B20: استقطاع(3) مئة راتب فاروق | C20: 8258214
B21: التامين مصرف 14 بعقوبة | C21: 185414
B22: التامين مصرف الفاروق | C22: 380830
B23: استقطاع (4)الرافدين المحيط بغداد | C23: 204792
B24: المصرف الزراعي الخالص | C24: 1070175
B25: المصرف الزراعي المقدادية | C25: 361452
B26: المصرف الزراعي بعقوبة | C26: 7532722
B27: المصرف الزراعي هبهب | C27: 3138020
B28: امانات متنوعة صندوق اسكان | C28: 2942818
B29: ايراد نهائي | C29: 9266986
B30: بدل ايجار | C30: 149900
B31: تامين البحيرة | C31: 19042
B32: تامين المقدادية | C32: 17085
B33: تامين صلاح الدين | C33: 6200
B34: تنفيذ كاظمية | C34: 288780
B35: تنفيذ الرصافة | C35: 407610
B36: تنفيذ الحلة | C36: 195700
B37: تنفيذ ابي صيدا | C37: 577697
B38: تنفيذ البياع | C38: 90000
B39: تنفيذ الخالص | C39: 1668943
B40: تنفيذ الزهور | C40: 462450
B41: تنفيذ العزيزية | C41: 129060
B42: تنفيذ بعقوبة | C42: 20420205
B43: تنفيذ بلدروز | C43: 387500
B44: تنفيذ خان بني سعد | C44: 1037714
B45: توقيفات تقاعدية | C45: 738348280
B46: استقطاع (4) رافدين 311 سيارات | C46: 2059420
B47: استقطاع (4)سلفة زواج فاروق | C47: 208000
B48: سلفة متنوعة | C48: 3076950
B49: استقطاع (4)شركة ديالى | C49: 100000
B50: ضريبة دخل | C50: 262333186
B51: عقاري | C51: 21419500
B52: استقطاع (4) قرض اسكان بلدروز | C52: 133611
B53: استقطاع (4)مصرف الرافدين العلوية | C53: 1878000
B54: استقطاع 5 فرع الهندية | C54: 0
B55: تنفيذ الدورة | C55: 0
B56: تنفيذ كربلاء | C56: 0
B57: استقطاع (4) 30 مليون فاروق | C57: 410258
B58: استقطاع (4) 5 مليون مصرف رافدين | C58: 0
B59: استقطاع (4) مديرية زراعة ديالى | C59: 100000
B60: استقطاع (4) 10 مليون مقدادية | C60: 461250
B61: استقطاع (4) رشيد شنونا 10 مليون | C61: 192084
B62: استقطاع (4)جامعة ديالى قسم الشؤون المالية | C62: 248800
B63: استقطاع (4) فرع الاعظمية 10 مليون | C63: 204792
B64: استقطاع (4) 30 مليون المقدادية | C64: 269166
B65: استقطاع (4)المصرف العراقي للتجارة/ النجف الاشرف | C65: 322675
B66: استقطاع(4) سلفة زواج صندوق التربية | C66: 104167
B67: تنفيذ جلولاء | C67: 110000
B68: استقطاع(4) 5مليون حذيفة بن اليمان | C68: 308945
B69: استقطاع(4)10 مليون رافدين 14 | C69: 204792
B70: 0 | C70: 0
B71: 0 | C71: 0
B72: 0 | C72: 0
B73: 0
B74: 0
B75: 0
B76: 0
B77: 0
B78: 0
B79: 0
B80: 0
B81: 0
B82: 0
B83: 0
B84: 0
B85: 0
B86: 0
B87: 0
B88: 0
B89: 0
B90: 0
B91: 0
B92: 0
B93: 0
B94: 0
B95: 0
B96: 0
B97: 0
B98: 0
B99: 0
B100: 0
B101: 0
B102: 0
C222: =SUBTOTAL(9,C1:C221) -> 36495457 | D222: 36795457 | E222: =C222-D222 -> -300000

Sheet استقطاع (4) 10 مليون العمارة 9
A2: ت | B2: اسم الموظف | C2: استقطاع (4) 10 مليون العمارة 9 | E2: Goto SALIM
A3: 1 | B3: حسين صكبان | C3: 204792
B4: المجموع | C4: 204792

Sheet استقطاع (4)10 مليون بلدروز
A2: ت | B2: اسم الموظف | C2: استقطاع (4)10 مليون بلدروز | E2: Goto SALIM
A3: 1 | B3: محمد خالد | C3: 204792
B4: المجموع | C4: 204792

Sheet استقطاع (4) 100 راتب البحيرة 3
A2: ت | B2: اسم الموظف | C2: استقطاع (4) 100 راتب البحيرة 311 | E2: Goto SALIM
A3: 1 | B3: حسين صكبان | C3: 331000
A4: 2 | B4: عذراء علي عبد | C4: 407069
B5: المجموع | C5: 738069

Sheet استقطاع (4)100 راتب مقدادية
A2: ت | B2: اسم الموظف | C2: استقطاع (4)100 راتب مقدادية | E2: Goto SALIM
A3: 1 | B3: سلام إبراهيم | C3: 322448
A4: 2 | B4: فاتن عبد العزيز | C4: 445371
B5: المجموع | C5: 767819

Sheet استقطاع (4)30 مليون صلاح الدين
A2: ت | B2: اسم الموظف | C2: استقطاع (4)30 مليون صلاح الدين | E2: Goto SALIM
A3: 1 | B3: امجد حميد | C3: 131329
B4: المجموع | C4: 131329

Sheet استقطاع (1) صندوق تربية
A2: ت | B2: اسم الموظف | C2: استقطاع (1) صندوق تربية | E2: Goto SALIM
A3: 1 | B3: احمد حميد | C3: 611000
A4: 2 | B4: اسيل خليل | C4: 592000
A5: 3 | B5: اشواق رزوقي | C5: 518000
A6: 4 | B6: امجد حميد | C6: 634000
A7: 5 | B7: بيداء فارس | C7: 599000
A8: 6 | B8: حسام الدين طه محسن | C8: 347000
A9: 7 | B9: حسام رشيد | C9: 682000
A10: 8 | B10: حسين صكبان | C10: 668000
A11: 9 | B11: سلام إبراهيم | C11: 633000
A12: 10 | B12: سهاد نبهان جلوب | C12: 504000
A13: 11 | B13: شاكر علي | C13: 546000
A14: 12 | B14: طلبة عبد جسام | C14: 485000
A15: 13 | B15: عذراء علي عبد | C15: 593000
A16: 14 | B16: فاتن عبد العزيز | C16: 489000
A17: 15 | B17: قسمه حميد | C17: 577000
A18: 16 | B18: ليلى علي حميد | C18: 567000
A19: 17 | B19: محمد تعبان محمد | C19: 610000
A20: 18 | B20: محمد خالد | C20: 655000
A21: 19 | B21: محمد عبد فليح | C21: =337000+83333 -> 420333
A22: 20 | B22: مصطفى كريم | C22: 650000
A23: 21 | B23: نضال إبراهيم | C23: 506000
A24: 22 | B24: نورة علاء حسين | C24: 567000
A25: 23 | B25: نوفل محمد إسماعيل | C25: 660000
A26: 24 | B26: هشام محي رشيد | C26: 375000
A27: 25 | B27: وسام فاضل | C27: 586000
A28: 26 | B28: وسام احمد جواد | C28: 461000
B29: المجموع | C29: 14535333

Sheet استقطاع 2 5 مليون فاروق
A2: ت | B2: اسم الموظف | C2: استقطاع 2 5 مليون فاروق | E2: Goto SALIM
A3: 1 | B3: احمد حميد | C3: 102395
A4: 2 | B4: اسيل خليل | C4: 307185
A5: 3 | B5: اشواق رزوقي | C5: 204790
A6: 4 | B6: حسام رشيد | C6: 102395
A7: 5 | B7: سهاد نبهان جلوب | C7: 307185
A8: 6 | B8: طلبة عبد جسام | C8: 204790
A9: 7 | B9: قسمه حميد | C9: 102395
A10: 8 | B10: محمد تعبان محمد | C10: 102395
A11: 9 | B11: مصطفى كريم | C11: 409580
A12: 10 | B12: هشام محي رشيد | C12: 204790
A13: 11 | B13: وسام فاضل | C13: 409580
B14: المجموع | C14: 2457480

Sheet استقطاع (4) 10 مليون فاروق
A2: ت | B2: اسم الموظف | C2: استقطاع (4) 10 مليون فاروق | E2: Goto SALIM
A3: 1 | B3: اسيل خليل | C3: 1228752
A4: 2 | B4: اشواق رزوقي | C4: 409584
A5: 3 | B5: امجد حميد | C5: 614376
A6: 4 | B6: بيداء فارس | C6: 614376
A7: 5 | B7: حسام رشيد | C7: 819168
A8: 6 | B8: حسين صكبان | C8: 819168
A9: 7 | B9: سهاد نبهان جلوب | C9: 819168
A10: 8 | B10: شاكر علي | C10: 614376
A11: 9 | B11: طلبة عبد جسام | C11: 409584
A12: 10 | B12: قسمه حميد | C12: 204792
A13: 11 | B13: ليلى علي حميد | C13: 204792
A14: 12 | B14: محمد تعبان محمد | C14: 409584
A15: 13 | B15: محمد خالد | C15: 614376
A16: 14 | B16: محمد عبد فليح | C16: 614376
A17: 15 | B17: مصطفى كريم | C17: 819168
A18: 16 | B18: نضال إبراهيم | C18: 614376
A19: 17 | B19: نورة علاء حسين | C19: 819168
A20: 18 | B20: نوفل محمد إسماعيل | C20: 409584
A21: 19 | B21: هشام محي رشيد | C21: 1023960
A22: 20 | B22: وسام فاضل | C22: 2252712
B23: المجموع | C23: 14335440

Sheet استقطاع (4) 5 مليون بلدروز
A2: ت | B2: اسم الموظف | C2: استقطاع (4) 5 مليون بلدروز | E2: Goto SALIM
A3: 1 | B3: وسام فاضل | C3: 102396
B4: المجموع | C4: 102396

Sheet استقطاع (4) الرشيد اشنونا سيار
A2: ت | B2: اسم الموظف | C2: استقطاع (4) الرشيد اشنونا سيارات | E2: Goto SALIM
A3: 1 | B3: سلام إبراهيم | C3: 409639
A4: 2 | B4: فاتن عبد العزيز | C4: 409639
A5: 3 | B5: ليلى علي حميد | C5: 436655
A6: 4 | B6: محمد خالد | C6: 568958
A7: 5 | B7: مصطفى كريم | C7: 409639
A8: 6 | B8: نضال إبراهيم | C8: 409639
B9: المجموع | C9: 2644169

Sheet استقطاع (4) سيارات بعقوبة
A2: ت | B2: اسم الموظف | C2: استقطاع (4) سيارات بعقوبة | E2: Goto SALIM
A3: 1 | B3: طلبة عبد جسام | C3: 654000
A4: 2 | B4: مصطفى كريم | C4: 351012
A5: 3 | B5: وسام فاضل | C5: 180960
A6: 4 | B6: وسام احمد جواد | C6: 376000
B7: المجموع | C7: 1561972

Sheet استقطاع (4) لصناعة المواد الان
A2: ت | B2: اسم الموظف | C2: استقطاع (4) لصناعة المواد الانشائية | E2: Goto SALIM
A3: 1 | B3: اسيل خليل | C3: 73250
B4: المجموع | C4: 73250

Sheet استقطاع (4) نقابة المعلمين
A2: ت | B2: اسم الموظف | C2: استقطاع (4) نقابة المعلمين | E2: Goto SALIM
A3: 1 | B3: ليلى علي حميد | C3: 127580
B4: المجموع | C4: 127580

Sheet استقطاع (4)5 مليون 14 بعقوبة
A2: ت | B2: اسم الموظف | C2: استقطاع (4)5 مليون 14 بعقوبة | E2: Goto SALIM
A3: 1 | B3: احمد حميد | C3: 409580
A4: 2 | B4: اشواق رزوقي | C4: 102395
A5: 3 | B5: حسام رشيد | C5: 204790
A6: 4 | B6: شاكر علي | C6: 102395
A7: 5 | B7: طلبة عبد جسام | C7: 192166
A8: 6 | B8: قسمه حميد | C8: 102395
A9: 7 | B9: محمد تعبان محمد | C9: 204790
A10: 8 | B10: محمد خالد | C10: 102395
A11: 9 | B11: محمد عبد فليح | C11: 102395
A12: 10 | B12: نورة علاء حسين | C12: 294561
B13: المجموع | C13: 1817862

Sheet استقطاع 5 رعاية
A2: ت | B2: اسم الموظف | C2: استقطاع 5 رعاية | E2: Goto SALIM
A3: 1 | B3: احمد حميد | C3: 782685
A4: 2 | B4: اسيل خليل | C4: 790459
A5: 3 | B5: اشواق رزوقي | C5: 585623
A6: 4 | B6: امجد حميد | C6: 798545
A7: 5 | B7: بيداء فارس | C7: 849509
A8: 6 | B8: حسام الدين طه محسن | C8: 411253
A9: 7 | B9: حسام رشيد | C9: 853214
A10: 8 | B10: حسين صكبان | C10: 857465
A11: 9 | B11: سلام إبراهيم | C11: 812592
A12: 10 | B12: سهاد نبهان جلوب | C12: 648871
A13: 11 | B13: شاكر علي | C13: 678024
A14: 12 | B14: طلبة عبد جسام | C14: 549493
A15: 13 | B15: عذراء علي عبد | C15: 737937
A16: 14 | B16: فاتن عبد العزيز | C16: 643393
A17: 15 | B17: قسمه حميد | C17: 694222
A18: 16 | B18: ليلى علي حميد | C18: 747844
A19: 17 | B19: محمد تعبان محمد | C19: 764651
A20: 18 | B20: محمد خالد | C20: 764507
A21: 19 | B21: محمد عبد فليح | C21: 374759
A22: 20 | B22: مصطفى كريم | C22: 787431
A23: 21 | B23: نضال إبراهيم | C23: 612374
A24: 22 | B24: نورة علاء حسين | C24: 721552
A25: 23 | B25: نوفل محمد إسماعيل | C25: 905600
A26: 24 | B26: هشام محي رشيد | C26: 489274
A27: 25 | B27: وسام فاضل | C27: 691029
A28: 26 | B28: وسام احمد جواد | C28: 616817
B29: المجموع | C29: 18169123

Sheet استقطاع 6 رسم طابع
A2: ت | B2: اسم الموظف | C2: استقطاع 6 رسم طابع | E2: Goto SALIM
A3: 1 | B3: سلام إبراهيم | C3: 1000
B4: المجموع | C4: 1000

Sheet استقطاع (4) 100 راتب 14 بعقوبة
A2: ت | B2: اسم الموظف | C2: استقطاع (4) 100 راتب 14 بعقوبة | E2: Goto SALIM
A3: 1 | B3: احمد حميد | C3: 445371
A4: 2 | B4: حسام الدين طه محسن | C4: 374111
A5: 3 | B5: طلبة عبد جسام | C5: 267223
A6: 4 | B6: عذراء علي عبد | C6: 391926
A7: 5 | B7: محمد تعبان محمد | C7: 445371
A8: 6 | B8: محمد خالد | C8: 445371
A9: 7 | B9: نورة علاء حسين | C9: 641344
A10: 8 | B10: وسام احمد جواد | C10: 1104517
B11: المجموع | C11: 4115234

Sheet استقطاع (4) اربعة مصرف الثقة
A2: ت | B2: اسم الموظف | C2: استقطاع (4) اربعة مصرف الثقة | E2: Goto SALIM
A3: 1 | B3: امجد حميد | C3: 650000
A4: 2 | B4: مصطفى كريم | C4: 365000
A5: 3 | B5: نورة علاء حسين | C5: 510000
A6: 4 | B6: وسام فاضل | C6: 225000
A7: 5 | B7: وسام احمد جواد | C7: 510000
B8: المجموع | C8: 2260000

Sheet استقطاع(3) مئة راتب فاروق
A2: ت | B2: اسم الموظف | C2: استقطاع(3) مئة راتب فاروق | E2: Goto SALIM
A3: 1 | B3: امجد حميد | C3: 721500
A4: 2 | B4: بيداء فارس | C4: 846204
A5: 3 | B5: حسام رشيد | C5: 329575
A6: 4 | B6: حسين صكبان | C6: 890742
A7: 5 | B7: عذراء علي عبد | C7: 419688
A8: 6 | B8: فاتن عبد العزيز | C8: 400833
A9: 7 | B9: قسمه حميد | C9: 445371
A10: 8 | B10: ليلى علي حميد | C10: 445371
A11: 9 | B11: محمد خالد | C11: 445371
A12: 10 | B12: مصطفى كريم | C12: 400833
A13: 11 | B13: نضال إبراهيم | C13: 445371
A14: 12 | B14: نوفل محمد إسماعيل | C14: 1576613
A15: 13 | B15: وسام فاضل | C15: 890742
B16: المجموع | C16: 8258214

Sheet التامين مصرف 14 بعقوبة
A2: ت | B2: اسم الموظف | C2: التامين مصرف 14 بعقوبة | E2: Goto SALIM
A3: 1 | B3: احمد حميد | C3: 20833
A4: 2 | B4: بيداء فارس | C4: 39583
A5: 3 | B5: طلبة عبد جسام | C5: 12500
A6: 4 | B6: عذراء علي عبد | C6: 18333
A7: 5 | B7: محمد تعبان محمد | C7: 20833
A8: 6 | B8: محمد خالد | C8: 20833
A9: 7 | B9: وسام احمد جواد | C9: 52499
B10: المجموع | C10: 185414

Sheet التامين مصرف الفاروق
A2: ت | B2: اسم الموظف | C2: التامين مصرف الفاروق | E2: Goto SALIM
A3: 1 | B3: امجد حميد | C3: 33750
A4: 2 | B4: حسام الدين طه محسن | C4: 17500
A5: 3 | B5: حسام رشيد | C5: 15417
A6: 4 | B6: حسين صكبان | C6: 41666
A7: 5 | B7: عذراء علي عبد | C7: 18750
A8: 6 | B8: فاتن عبد العزيز | C8: 18750
A9: 7 | B9: قسمه حميد | C9: 20833
A10: 8 | B10: ليلى علي حميد | C10: 20833
A11: 9 | B11: محمد خالد | C11: 20833
A12: 10 | B12: مصطفى كريم | C12: 18750
A13: 11 | B13: نضال إبراهيم | C13: 20833
A14: 12 | B14: نورة علاء حسين | C14: 17500
A15: 13 | B15: نوفل محمد إسماعيل | C15: 73749
A16: 14 | B16: وسام فاضل | C16: 41666
B17: المجموع | C17: 380830

Sheet استقطاع (4)الرافدين المحيط بغد
A2: ت | B2: اسم الموظف | C2: استقطاع (4)الرافدين المحيط بغداد | E2: Goto SALIM
A3: 1 | B3: محمد خالد | C3: 204792
B4: المجموع | C4: 204792

Sheet المصرف الزراعي الخالص
A2: ت | B2: اسم الموظف | C2: المصرف الزراعي الخالص | E2: Goto SALIM
A3: 1 | B3: اشواق رزوقي | C3: 620000
A4: 2 | B4: وسام فاضل | C4: 450175
B5: المجموع | C5: 1070175

Sheet المصرف الزراعي المقدادية
A2: ت | B2: اسم الموظف | C2: المصرف الزراعي المقدادية | E2: Goto SALIM
A3: 1 | B3: حسين صكبان | C3: 109225
A4: 2 | B4: محمد خالد | C4: 252227
B5: المجموع | C5: 361452

Sheet المصرف الزراعي بعقوبة
A2: ت | B2: اسم الموظف | C2: المصرف الزراعي بعقوبة | E2: Goto SALIM
A3: 1 | B3: احمد حميد | C3: 620400
A4: 2 | B4: اسيل خليل | C4: 1176750
A5: 3 | B5: اشواق رزوقي | C5: 234822
A6: 4 | B6: امجد حميد | C6: 1338100
A7: 5 | B7: حسين صكبان | C7: 1312600
A8: 6 | B8: عذراء علي عبد | C8: 388400
A9: 7 | B9: محمد خالد | C9: 520000
A10: 8 | B10: مصطفى كريم | C10: 890000
A11: 9 | B11: وسام فاضل | C11: 1051650
B12: المجموع | C12: 7532722

Sheet المصرف الزراعي هبهب
A2: ت | B2: اسم الموظف | C2: المصرف الزراعي هبهب | E2: Goto SALIM
A3: 1 | B3: احمد حميد | C3: 640400
A4: 2 | B4: حسام رشيد | C4: 877900
A5: 3 | B5: سلام إبراهيم | C5: 1031325
A6: 4 | B6: ليلى علي حميد | C6: 119320
A7: 5 | B7: محمد عبد فليح | C7: 469075
B8: المجموع | C8: 3138020

Sheet امانات متنوعة صندوق اسكان
A2: ت | B2: اسم الموظف | C2: امانات متنوعة صندوق اسكان | E2: Goto SALIM
A3: 1 | B3: احمد حميد | C3: 130860
A4: 2 | B4: اسيل خليل | C4: 305052
A5: 3 | B5: اشواق رزوقي | C5: 384420
A6: 4 | B6: امجد حميد | C6: 127150
A7: 5 | B7: حسين صكبان | C7: 327150
A8: 6 | B8: عذراء علي عبد | C8: 145400
A9: 7 | B9: فاتن عبد العزيز | C9: 127150
A10: 8 | B10: قسمه حميد | C10: 408750
A11: 9 | B11: ليلى علي حميد | C11: 326056
A12: 10 | B12: محمد تعبان محمد | C12: 145400
A13: 11 | B13: نورة علاء حسين | C13: 145400
A14: 12 | B14: نوفل محمد إسماعيل | C14: 145400
A15: 13 | B15: هشام محي رشيد | C15: 97480
A16: 14 | B16: وسام فاضل | C16: 127150
B17: المجموع | C17: 2942818

Sheet ايراد نهائي
A2: ت | B2: اسم الموظف | C2: ايراد نهائي | E2: Goto SALIM
A3: 1 | B3: احمد حميد | C3: 123000
A4: 2 | B4: اشواق رزوقي | C4: 250000
A5: 3 | B5: امجد حميد | C5: 476041
A6: 4 | B6: بيداء فارس | C6: 414004
A7: 5 | B7: حسام الدين طه محسن | C7: 273468
A8: 6 | B8: حسام رشيد | C8: 304253
A9: 7 | B9: حسين صكبان | C9: 150002
A10: 8 | B10: سلام إبراهيم | C10: 100002
A11: 9 | B11: سهاد نبهان جلوب | C11: 1
A12: 10 | B12: شاكر علي | C12: 225002
A13: 11 | B13: طلبة عبد جسام | C13: 311000
A14: 12 | B14: عذراء علي عبد | C14: 609450
A15: 13 | B15: فاتن عبد العزيز | C15: 150011
A16: 14 | B16: قسمه حميد | C16: 154600
A17: 15 | B17: ليلى علي حميد | C17: 458104
A18: 16 | B18: محمد تعبان محمد | C18: 932127
A19: 17 | B19: محمد خالد | C19: 196001
A20: 18 | B20: محمد عبد فليح | C20: 189791
A21: 19 | B21: مصطفى كريم | C21: 483596
A22: 20 | B22: نضال إبراهيم | C22: 1107667
A23: 21 | B23: نورة علاء حسين | C23: 599002
A24: 22 | B24: نوفل محمد إسماعيل | C24: 314463
A25: 23 | B25: وسام فاضل | C25: 1164401
A26: 24 | B26: وسام احمد جواد | C26: 281000
B27: المجموع | C27: 9266986

Sheet بدل ايجار
A2: ت | B2: اسم الموظف | C2: بدل ايجار | E2: Goto SALIM
A3: 1 | B3: حسين صكبان | C3: 81400
A4: 2 | B4: قسمه حميد | C4: 19000
A5: 3 | B5: مصطفى كريم | C5: 49500
B6: المجموع | C6: 149900

Sheet تامين البحيرة
A2: ت | B2: اسم الموظف | C2: تامين البحيرة | E2: Goto SALIM
A3: 1 | B3: عذراء علي عبد | C3: 19042
B4: المجموع | C4: 19042

Sheet تامين المقدادية
A2: ت | B2: اسم الموظف | C2: تامين المقدادية | E2: Goto SALIM
A3: 1 | B3: سلام إبراهيم | C3: 15000
A4: 2 | B4: فاتن عبد العزيز | C4: 2085
B5: المجموع | C5: 17085

Sheet تامين صلاح الدين
A2: ت | B2: اسم الموظف | C2: تامين صلاح الدين | E2: Goto SALIM
A3: 1 | B3: امجد حميد | C3: 6200
B4: المجموع | C4: 6200

Sheet تنفيذ كاظمية
A2: ت | B2: اسم الموظف | C2: تنفيذ كاظمية | E2: Goto SALIM
A3: 1 | B3: ليلى علي حميد | C3: 288780
B4: المجموع | C4: 288780

Sheet تنفيذ الرصافة
A2: ت | B2: اسم الموظف | C2: تنفيذ الرصافة | E2: Goto SALIM
A3: 1 | B3: ليلى علي حميد | C3: 407610
B4: المجموع | C4: 407610

Sheet تنفيذ الحلة
A2: ت | B2: اسم الموظف | C2: تنفيذ الحلة | E2: Goto SALIM
A3: 1 | B3: محمد تعبان محمد | C3: 195700
B4: المجموع | C4: 195700

Sheet تنفيذ ابي صيدا
A2: ت | B2: اسم الموظف | C2: تنفيذ ابي صيدا | E2: Goto SALIM
A3: 1 | B3: حسام رشيد | C3: 309000
A4: 2 | B4: عذراء علي عبد | C4: 268697
B5: المجموع | C5: 577697

Sheet تنفيذ البياع
A2: ت | B2: اسم الموظف | C2: تنفيذ البياع | E2: Goto SALIM
A3: 1 | B3: طلبة عبد جسام | C3: 90000
B4: المجموع | C4: 90000

Sheet تنفيذ الخالص
A2: ت | B2: اسم الموظف | C2: تنفيذ الخالص | E2: Goto SALIM
A3: 1 | B3: اشواق رزوقي | C3: 924483
A4: 2 | B4: طلبة عبد جسام | C4: 226600
A5: 3 | B5: عذراء علي عبد | C5: 67000
A6: 4 | B6: قسمه حميد | C6: 20600
A7: 5 | B7: محمد تعبان محمد | C7: 123600
A8: 6 | B8: محمد خالد | C8: 128750
A9: 7 | B9: وسام فاضل | C9: 177910
B10: المجموع | C10: 1668943

Sheet تنفيذ الزهور
A2: ت | B2: اسم الموظف | C2: تنفيذ الزهور | E2: Goto SALIM
A3: 1 | B3: محمد تعبان محمد | C3: 362450
A4: 2 | B4: وسام فاضل | C4: 100000
B5: المجموع | C5: 462450

Sheet تنفيذ العزيزية
A2: ت | B2: اسم الموظف | C2: تنفيذ العزيزية | E2: Goto SALIM
A3: 1 | B3: امجد حميد | C3: 129060
B4: المجموع | C4: 129060

Sheet تنفيذ بعقوبة
A2: ت | B2: اسم الموظف | C2: تنفيذ بعقوبة | E2: Goto SALIM
A3: 1 | B3: احمد حميد | C3: 1477890
A4: 2 | B4: اسيل خليل | C4: 489450
A5: 3 | B5: اشواق رزوقي | C5: 553631
A6: 4 | B6: امجد حميد | C6: 1545570
A7: 5 | B7: بيداء فارس | C7: 103000
A8: 6 | B8: حسام الدين طه محسن | C8: 206000
A9: 7 | B9: حسام رشيد | C9: 1970210
A10: 8 | B10: حسين صكبان | C10: 1833110
A11: 9 | B11: سهاد نبهان جلوب | C11: 757778
A12: 10 | B12: طلبة عبد جسام | C12: 674140
A13: 11 | B13: عذراء علي عبد | C13: 149170
A14: 12 | B14: قسمه حميد | C14: 273620
A15: 13 | B15: ليلى علي حميد | C15: 1255595
A16: 14 | B16: محمد تعبان محمد | C16: 1744530
A17: 15 | B17: محمد خالد | C17: 1097250
A18: 16 | B18: مصطفى كريم | C18: 1618890
A19: 17 | B19: نضال إبراهيم | C19: 725670
A20: 18 | B20: نورة علاء حسين | C20: 179630
A21: 19 | B21: نوفل محمد إسماعيل | C21: 1870981
A22: 20 | B22: هشام محي رشيد | C22: 197300
A23: 21 | B23: وسام فاضل | C23: 359660
A24: 22 | B24: وسام احمد جواد | C24: 1337130
B25: المجموع | C25: 20420205

Sheet تنفيذ بلدروز
A2: ت | B2: اسم الموظف | C2: تنفيذ بلدروز | E2: Goto SALIM
A3: 1 | B3: اشواق رزوقي | C3: 233000
A4: 2 | B4: مصطفى كريم | C4: 154500
B5: المجموع | C5: 387500

Sheet تنفيذ خان بني سعد
A2: ت | B2: اسم الموظف | C2: تنفيذ خان بني سعد | E2: Goto SALIM
A3: 1 | B3: احمد حميد | C3: 176250
A4: 2 | B4: حسام رشيد | C4: 80200
A5: 3 | B5: عذراء علي عبد | C5: 157824
A6: 4 | B6: مصطفى كريم | C6: 623440
B7: المجموع | C7: 1037714

Sheet توقيفات تقاعدية
A2: ت | B2: اسم الموظف | C2: توقيفات تقاعدية | E2: Goto SALIM
A3: 1 | B3: احمد حميد | C3: 31736220
A4: 2 | B4: اسيل خليل | C4: 31958400
A5: 3 | B5: اشواق رزوقي | C5: 23477500
A6: 4 | B6: امجد حميد | C6: 32105200
A7: 5 | B7: بيداء فارس | C7: 34874300
A8: 6 | B8: حسام الدين طه محسن | C8: 16612300
A9: 7 | B9: حسام رشيد | C9: 34968300
A10: 8 | B10: حسين صكبان | C10: 34618226
A11: 9 | B11: سلام إبراهيم | C11: 32874173
A12: 10 | B12: سهاد نبهان جلوب | C12: 26562750
A13: 11 | B13: شاكر علي | C13: 27539800
A14: 12 | B14: طلبة عبد جسام | C14: 22426000
A15: 13 | B15: عذراء علي عبد | C15: 30283300
A16: 14 | B16: فاتن عبد العزيز | C16: 26130500
A17: 15 | B17: قسمه حميد | C17: 28115550
A18: 16 | B18: ليلى علي حميد | C18: 30194800
A19: 17 | B19: محمد تعبان محمد | C19: 31689250
A20: 18 | B20: محمد خالد | C20: 31289589
A21: 19 | B21: محمد عبد فليح | C21: 15118600
A22: 20 | B22: مصطفى كريم | C22: 32151423
A23: 21 | B23: نضال إبراهيم | C23: 24923600
A24: 22 | B24: نورة علاء حسين | C24: 29553633
A25: 23 | B25: نوفل محمد إسماعيل | C25: 36831100
A26: 24 | B26: هشام محي رشيد | C26: 19729800
A27: 25 | B27: وسام فاضل | C27: 27911116
A28: 26 | B28: وسام احمد جواد | C28: 24672850
B29: المجموع | C29: 738348280

Sheet استقطاع (4) رافدين 311 سيارات
A2: ت | B2: اسم الموظف | C2: استقطاع (4) رافدين 311 سيارات | E2: Goto SALIM
A3: 1 | B3: طلبة عبد جسام | C3: 520000
A4: 2 | B4: قسمه حميد | C4: 1007000
A5: 3 | B5: محمد تعبان محمد | C5: 340000
A6: 4 | B6: وسام فاضل | C6: 192420
B7: المجموع | C7: 2059420

Sheet استقطاع (4)سلفة زواج فاروق
A2: ت | B2: اسم الموظف | C2: استقطاع (4)سلفة زواج فاروق | E2: Goto SALIM
A3: 1 | B3: حسام رشيد | C3: 104000
A4: 2 | B4: نورة علاء حسين | C4: 104000
B5: المجموع | C5: 208000

Sheet سلفة متنوعة
A2: ت | B2: اسم الموظف | C2: سلفة متنوعة | E2: Goto SALIM
A3: 1 | B3: احمد حميد | C3: 219731
A4: 2 | B4: امجد حميد | C4: 231570
A5: 3 | B5: حسام الدين طه محسن | C5: 677100
A6: 4 | B6: حسام رشيد | C6: 338000
A7: 5 | B7: سلام إبراهيم | C7: 100000
A8: 6 | B8: سهاد نبهان جلوب | C8: 80725
A9: 7 | B9: شاكر علي | C9: 48000
A10: 8 | B10: محمد خالد | C10: 534701
A11: 9 | B11: مصطفى كريم | C11: 340000
A12: 10 | B12: نضال إبراهيم | C12: 60000
A13: 11 | B13: نورة علاء حسين | C13: 103620
A14: 12 | B14: هشام محي رشيد | C14: 232910
A15: 13 | B15: وسام فاضل | C15: 110593
B16: المجموع | C16: 3076950

Sheet استقطاع (4)شركة ديالى
A2: ت | B2: اسم الموظف | C2: استقطاع (4)شركة ديالى | E2: Goto SALIM
A3: 1 | B3: مصطفى كريم | C3: 100000
B4: المجموع | C4: 100000

Sheet ضريبة دخل
A2: ت | B2: اسم الموظف | C2: ضريبة دخل | E2: Goto SALIM
A3: 1 | B3: احمد حميد | C3: 11638116
A4: 2 | B4: اسيل خليل | C4: 13371973
A5: 3 | B5: اشواق رزوقي | C5: 5901735
A6: 4 | B6: امجد حميد | C6: 11510388
A7: 5 | B7: بيداء فارس | C7: 16344874
A8: 6 | B8: حسام الدين طه محسن | C8: 4684272
A9: 7 | B9: حسام رشيد | C9: 12140261
A10: 8 | B10: حسين صكبان | C10: 12537141
A11: 9 | B11: سلام إبراهيم | C11: 11090080
A12: 10 | B12: سهاد نبهان جلوب | C12: 9944918
A13: 11 | B13: شاكر علي | C13: 10172728
A14: 12 | B14: طلبة عبد جسام | C14: 6351202
A15: 13 | B15: عذراء علي عبد | C15: 10330535
A16: 14 | B16: فاتن عبد العزيز | C16: 9983794
A17: 15 | B17: قسمه حميد | C17: 9372202
A18: 16 | B18: ليلى علي حميد | C18: 12269591
A19: 17 | B19: محمد تعبان محمد | C19: 10439010
A20: 18 | B20: محمد خالد | C20: 9186999
A21: 19 | B21: محمد عبد فليح | C21: 3233540
A22: 20 | B22: مصطفى كريم | C22: 9224458
A23: 21 | B23: نضال إبراهيم | C23: 8319417
A24: 22 | B24: نورة علاء حسين | C24: 11201373
A25: 23 | B25: نوفل محمد إسماعيل | C25: 15421396
A26: 24 | B26: هشام محي رشيد | C26: 7850757
A27: 25 | B27: وسام فاضل | C27: 9504096
A28: 26 | B28: وسام احمد جواد | C28: 10308330
B29: المجموع | C29: 262333186

Sheet عقاري
A2: ت | B2: اسم الموظف | C2: عقاري | E2: Goto SALIM
A3: 1 | B3: احمد حميد | C3: 1221750
A4: 2 | B4: اسيل خليل | C4: 1335250
A5: 3 | B5: اشواق رزوقي | C5: 1105500
A6: 4 | B6: امجد حميد | C6: 372000
A7: 5 | B7: بيداء فارس | C7: 1724000
A8: 6 | B8: حسام رشيد | C8: 713750
A9: 7 | B9: حسين صكبان | C9: 1291250
A10: 8 | B10: سلام إبراهيم | C10: 53000
A11: 9 | B11: سهاد نبهان جلوب | C11: 744500
A12: 10 | B12: شاكر علي | C12: 301750
A13: 11 | B13: طلبة عبد جسام | C13: 560000
A14: 12 | B14: عذراء علي عبد | C14: 587000
A15: 13 | B15: فاتن عبد العزيز | C15: 1334750
A16: 14 | B16: قسمه حميد | C16: 1092500
A17: 15 | B17: ليلى علي حميد | C17: 880000
A18: 16 | B18: محمد تعبان محمد | C18: 963000
A19: 17 | B19: محمد خالد | C19: 983000
A20: 18 | B20: محمد عبد فليح | C20: 527500
A21: 19 | B21: مصطفى كريم | C21: 1065500
A22: 20 | B22: نضال إبراهيم | C22: 368000
A23: 21 | B23: نورة علاء حسين | C23: 745500
A24: 22 | B24: نوفل محمد إسماعيل | C24: 776500
A25: 23 | B25: هشام محي رشيد | C25: 186000
A26: 24 | B26: وسام فاضل | C26: 1422500
A27: 25 | B27: وسام احمد جواد | C27: 1065000
B28: المجموع | C28: 21419500

Sheet استقطاع (4) قرض اسكان بلدروز
A2: ت | B2: اسم الموظف | C2: استقطاع (4) قرض اسكان بلدروز | E2: Goto SALIM
A3: 1 | B3: عذراء علي عبد | C3: 133611
B4: المجموع | C4: 133611

Sheet استقطاع (4)مصرف الرافدين العلو
A2: ت | B2: اسم الموظف | C2: استقطاع (4)مصرف الرافدين العلوية | E2: Goto SALIM
A3: 1 | B3: حسين صكبان | C3: 420000
A4: 2 | B4: عذراء علي عبد | C4: 420000
A5: 3 | B5: محمد تعبان محمد | C5: 519000
A6: 4 | B6: مصطفى كريم | C6: 519000
B7: المجموع | C7: 1878000

Sheet استقطاع 5 فرع الهندية
B2: اسم الموظف | C2: استقطاع 5 فرع الهندية | E2: Goto SALIM

Sheet تنفيذ الدورة
B2: اسم الموظف | C2: تنفيذ الدورة | E2: Goto SALIM

Sheet تنفيذ كربلاء
B2: اسم الموظف | C2: تنفيذ كربلاء | E2: Goto SALIM

Sheet استقطاع (4) 30 مليون فاروق
A2: ت | B2: اسم الموظف | C2: استقطاع (4) 30 مليون فاروق | E2: Goto SALIM
A3: 1 | B3: قسمه حميد | C3: 410258
B4: المجموع | C4: 410258

Sheet استقطاع (4) 5 مليون مصرف رافدي
B2: اسم الموظف | C2: استقطاع (4) 5 مليون مصرف رافدين | E2: Goto SALIM

Sheet استقطاع (4) مديرية زراعة ديالى
A2: ت | B2: اسم الموظف | C2: استقطاع (4) مديرية زراعة ديالى | E2: Goto SALIM
A3: 1 | B3: حسام رشيد | C3: 100000
B4: المجموع | C4: 100000

Sheet استقطاع (4) 10 مليون مقدادية
A2: ت | B2: اسم الموظف | C2: استقطاع (4) 10 مليون مقدادية | E2: Goto SALIM
A3: 1 | B3: سهاد نبهان جلوب | C3: 192084
A4: 2 | B4: محمد خالد | C4: 269166
B5: المجموع | C5: 461250

Sheet استقطاع (4) رشيد شنونا 10 مليو
A2: ت | B2: اسم الموظف | C2: استقطاع (4) رشيد شنونا 10 مليون | E2: Goto SALIM
A3: 1 | B3: اشواق رزوقي | C3: 192084
B4: المجموع | C4: 192084

Sheet استقطاع (4)جامعة ديالى قسم الش
A2: ت | B2: اسم الموظف | C2: استقطاع (4)جامعة ديالى قسم الشؤون المالية | E2: Goto SALIM
A3: 1 | B3: بيداء فارس | C3: 248800
B4: المجموع | C4: 248800

Sheet استقطاع (4) فرع الاعظمية 10 مل
A2: ت | B2: اسم الموظف | C2: استقطاع (4) فرع الاعظمية 10 مليون | E2: Goto SALIM
A3: 1 | B3: حسام رشيد | C3: 204792
B4: المجموع | C4: 204792

Sheet استقطاع (4) 30 مليون المقدادية
A2: ت | B2: اسم الموظف | C2: استقطاع (4) 30 مليون المقدادية | E2: Goto SALIM
A3: 1 | B3: حسام رشيد | C3: 269166
B4: المجموع | C4: 269166

Sheet استقطاع (4)المصرف العراقي للتج
A2: ت | B2: اسم الموظف | C2: استقطاع (4)المصرف العراقي للتجارة/ النجف الاشرف | E2: Goto SALIM
A3: 1 | B3: محمد تعبان محمد | C3: 322675
B4: المجموع | C4: 322675

Sheet استقطاع(4) سلفة زواج صندوق الت
A2: ت | B2: اسم الموظف | C2: استقطاع(4) سلفة زواج صندوق التربية | E2: Goto SALIM
A3: 1 | B3: امجد حميد | C3: 104167
B4: المجموع | C4: 104167
